[Event "*** Titled Tuesday Blitz"]
[Site "Chess.com"]
[Date "2020.05.12"]
[Round "1"]
[White "Ati1517"]
[Black "Chessmasterzt"]
[Result "1-0"]
[WhiteElo "2283"]
[BlackElo "2566"]
[TimeControl "180+1"]
[EndTime "10:09:58 PDT"]
[Termination "Ati1517 won by resignation"]

1. d4 {[%clk 0:03:00.9]} 1... d6 {[%clk 0:02:58.4]} 2. c4 {[%clk 0:03:00.1]}
2... Nf6 {[%clk 0:02:58.6]} 3. Nf3 {[%clk 0:02:59.6]} 3... g6 {[%clk 0:02:57.7]}
4. Nc3 {[%clk 0:02:59.2]} 4... Bg7 {[%clk 0:02:58.1]} 5. e4 {[%clk 0:02:58.8]}
5... O-O {[%clk 0:02:59]} 6. g3 {[%clk 0:02:59]} 6... c5 {[%clk 0:02:51.2]} 7.
d5 {[%clk 0:02:56.1]} 7... Na6 {[%clk 0:02:49.3]} 8. Bg2 {[%clk 0:02:55.4]} 8...
Nc7 {[%clk 0:02:47.8]} 9. O-O {[%clk 0:02:53.5]} 9... Rb8 {[%clk 0:02:46.2]} 10.
Ne1 {[%clk 0:02:39.6]} 10... b5 {[%clk 0:02:39.1]} 11. cxb5 {[%clk 0:02:38.3]}
11... a6 {[%clk 0:02:36.6]} 12. b6 {[%clk 0:02:33]} 12... Nb5 {[%clk 0:02:30.8]}
13. Nc2 {[%clk 0:02:33.9]} 13... Nxc3 {[%clk 0:02:26.7]} 14. bxc3 {[%clk
0:02:32]} 14... Nd7 {[%clk 0:02:26.4]} 15. Bd2 {[%clk 0:02:26.8]} 15... Nxb6
{[%clk 0:02:22.3]} 16. Ne3 {[%clk 0:02:26.6]} 16... a5 {[%clk 0:02:21.7]} 17.
Rb1 {[%clk 0:02:24.4]} 17... Ba6 {[%clk 0:02:21.5]} 18. Re1 {[%clk 0:02:22.5]}
18... Qd7 {[%clk 0:02:21.1]} 19. Bf1 {[%clk 0:02:21.5]} 19... Bxf1 {[%clk
0:02:20]} 20. Kxf1 {[%clk 0:02:20.8]} 20... c4 {[%clk 0:02:09.9]} 21. Qc2 {[%clk
0:02:14.1]} 21... Rfc8 {[%clk 0:01:48.2]} 22. Kg2 {[%clk 0:02:10.6]} 22... Qc7
{[%clk 0:01:42.7]} 23. f4 {[%clk 0:02:09.9]} 23... Nd7 {[%clk 0:01:41.8]} 24.
Rxb8 {[%clk 0:01:39]} 24... Rxb8 {[%clk 0:01:42.7]} 25. Rb1 {[%clk 0:01:39.4]}
25... Nc5 {[%clk 0:01:36]} 26. Nxc4 {[%clk 0:01:22.1]} 26... Rxb1 {[%clk
0:01:31.4]} 27. Qxb1 {[%clk 0:01:21.7]} 27... Na4 {[%clk 0:01:30.7]} 28. Qb3
{[%clk 0:01:12]} 28... Nc5 {[%clk 0:01:29.5]} 29. Qb1 {[%clk 0:01:09.8]} 29...
h5 {[%clk 0:01:28]} 30. f5 {[%clk 0:00:51.9]} 30... gxf5 {[%clk 0:01:19.1]} 31.
exf5 {[%clk 0:00:51.9]} 31... Bf6 {[%clk 0:01:08.4]} 32. Kf3 {[%clk 0:00:37.6]}
32... Qc8 {[%clk 0:01:06.7]} 33. Ne3 {[%clk 0:00:34.9]} 33... Qa6 {[%clk
0:01:03.9]} 34. c4 {[%clk 0:00:33.9]} 34... a4 {[%clk 0:00:55.4]} 35. Qb5 {[%clk
0:00:33.5]} 35... Qc8 {[%clk 0:00:50.8]} 36. Qc6 {[%clk 0:00:31.4]} 36... Qb8
{[%clk 0:00:46.4]} 37. Qb5 {[%clk 0:00:30.4]} 37... Qc8 {[%clk 0:00:46]} 38. h4
{[%clk 0:00:29.2]} 38... Nd7 {[%clk 0:00:45.1]} 39. Qxa4 {[%clk 0:00:25.2]}
39... Ne5+ {[%clk 0:00:45.3]} 40. Kg2 {[%clk 0:00:24.6]} 40... Qc5 {[%clk
0:00:39.5]} 41. Qd1 {[%clk 0:00:24.4]} 41... Qd4 {[%clk 0:00:36.7]} 42. Qe2
{[%clk 0:00:21.1]} 42... Qe4+ {[%clk 0:00:36.3]} 43. Kg1 {[%clk 0:00:20.8]}
43... Nf3+ {[%clk 0:00:32.8]} 44. Kf2 {[%clk 0:00:20.3]} 44... Ne5 {[%clk
0:00:18.7]} 45. Qxh5 {[%clk 0:00:20.2]} 45... Nxc4 {[%clk 0:00:15.7]} 46. Ke2
{[%clk 0:00:18.6]} 46... Nxd2 {[%clk 0:00:12.6]} 47. Kxd2 {[%clk 0:00:18.5]}
47... Qb4+ {[%clk 0:00:10.5]} 48. Ke2 {[%clk 0:00:18]} 48... Qb2+ {[%clk
0:00:11]} 49. Kf3 {[%clk 0:00:18.2]} 49... Qxa2 {[%clk 0:00:11.3]} 50. Qg4+
{[%clk 0:00:18.1]} 50... Kf8 {[%clk 0:00:10.7]} 51. Qc4 {[%clk 0:00:19]} 51...
Qb1 {[%clk 0:00:10.1]} 52. Qc8+ {[%clk 0:00:18.3]} 52... Kg7 {[%clk 0:00:10.5]}
53. Qc4 {[%clk 0:00:19.2]} 53... Qh1+ {[%clk 0:00:10.5]} 54. Kf2 {[%clk
0:00:18.7]} 54... Qb1 {[%clk 0:00:09.2]} 55. Ng2 {[%clk 0:00:18.9]} 55... Qxf5+
{[%clk 0:00:08.2]} 56. Qf4 {[%clk 0:00:18.1]} 56... Qxd5 {[%clk 0:00:07.9]} 57.
Ne3 {[%clk 0:00:17.2]} 57... Qa2+ {[%clk 0:00:07.3]} 58. Kf3 {[%clk 0:00:17.4]}
58... Qa8+ {[%clk 0:00:07.8]} 59. Qe4 {[%clk 0:00:16.7]} 59... Qa5 {[%clk
0:00:07.9]} 60. Nf5+ {[%clk 0:00:15.3]} 60... Kf8 {[%clk 0:00:07.9]} 61. Ne3
{[%clk 0:00:16.1]} 61... Qe5 {[%clk 0:00:06.6]} 62. Qg4 {[%clk 0:00:16.5]} 62...
e6 {[%clk 0:00:05.5]} 63. Qf4 {[%clk 0:00:15.4]} 63... Qxf4+ {[%clk 0:00:04.7]}
64. Kxf4 {[%clk 0:00:14.9]} 64... Kg7 {[%clk 0:00:04.9]} 65. h5 {[%clk
0:00:15.5]} 65... Be5+ {[%clk 0:00:04.9]} 66. Kg4 {[%clk 0:00:15.3]} 66... d5
{[%clk 0:00:05.2]} 67. Kh4 {[%clk 0:00:16]} 67... Kh6 {[%clk 0:00:05.5]} 68.
Ng4+ {[%clk 0:00:16.1]} 68... Kg7 {[%clk 0:00:06]} 69. Nxe5 {[%clk 0:00:17]}
69... f6 {[%clk 0:00:06.6]} 70. Nf3 {[%clk 0:00:17.1]} 70... e5 {[%clk 0:00:06]}
71. Kg4 {[%clk 0:00:17.6]} 71... Kh6 {[%clk 0:00:04.9]} 72. Nh4 {[%clk
0:00:17.6]} 72... d4 {[%clk 0:00:04.5]} 73. Nf5+ {[%clk 0:00:18.4]} 73... Kh7
{[%clk 0:00:04.9]} 74. Kf3 {[%clk 0:00:19.2]} 74... Kg8 {[%clk 0:00:05]} 75. Ke4
{[%clk 0:00:19.5]} 75... Kf7 {[%clk 0:00:05.2]} 76. g4 {[%clk 0:00:20.4]} 76...
Kg8 {[%clk 0:00:05.1]} 77. Ne7+ {[%clk 0:00:19.6]} 77... Kg7 {[%clk 0:00:05.2]}
78. Nd5 {[%clk 0:00:20.1]} 78... Kf7 {[%clk 0:00:04.3]} 79. Nb4 {[%clk
0:00:19.5]} 79... Kg7 {[%clk 0:00:03.9]} 80. Nc6 {[%clk 0:00:19.5]} 80... Kh6
{[%clk 0:00:03.7]} 81. Ne7 {[%clk 0:00:18.7]} 81... Kg5 {[%clk 0:00:03.9]} 82.
Nf5 {[%clk 0:00:18.2]} 82... Kxg4 {[%clk 0:00:04]} 83. h6 {[%clk 0:00:17.7]}
83... d3 {[%clk 0:00:04.9]} 84. Kxd3 {[%clk 0:00:17.8]} 84... Kxf5 {[%clk
0:00:05.8]} 85. h7 {[%clk 0:00:18.1]} 85... e4+ {[%clk 0:00:06.5]} 86. Ke3
{[%clk 0:00:17.6]} 86... Kg6 {[%clk 0:00:06.8]} 87. h8=Q {[%clk 0:00:17.6]}
87... f5 {[%clk 0:00:07.7]} 88. Qg8+ {[%clk 0:00:17.7]} 88... Kf6 {[%clk
0:00:07.8]} 89. Kf4 {[%clk 0:00:18.2]} 89... e3 {[%clk 0:00:07.4]} 90. Qg5+
{[%clk 0:00:19.1]} 90... Kf7 {[%clk 0:00:06.9]} 91. Qxf5+ {[%clk 0:00:20]} 91...
Kg7 {[%clk 0:00:07.1]} 92. Qe5+ {[%clk 0:00:20.6]} 1-0

[Event "*** Titled Tuesday Blitz"]
[Site "Chess.com"]
[Date "2020.05.12"]
[Round "1"]
[White "enriquetejedor"]
[Black "Mykola-Bortnyk"]
[Result "1-0"]
[WhiteElo "2462"]
[BlackElo "2868"]
[TimeControl "180+1"]
[EndTime "10:10:05 PDT"]
[Termination "enriquetejedor won on time"]

1. e4 {[%clk 0:02:19.4]} 1... Nf6 {[%clk 0:02:57.8]} 2. e5 {[%clk 0:02:16.8]}
2... Nd5 {[%clk 0:02:57.4]} 3. d4 {[%clk 0:02:13.6]} 3... d6 {[%clk 0:02:57.1]}
4. Nf3 {[%clk 0:02:11.9]} 4... dxe5 {[%clk 0:02:55.3]} 5. Nxe5 {[%clk
0:02:11.5]} 5... c6 {[%clk 0:02:55.7]} 6. c4 {[%clk 0:02:10.2]} 6... Nb4 {[%clk
0:02:54.9]} 7. Be3 {[%clk 0:02:05.3]} 7... Nd7 {[%clk 0:02:54.3]} 8. Nf3 {[%clk
0:01:47.4]} 8... e5 {[%clk 0:02:49.4]} 9. a3 {[%clk 0:01:41]} 9... exd4 {[%clk
0:02:30.2]} 10. Bxd4 {[%clk 0:01:38.3]} 10... c5 {[%clk 0:02:22.7]} 11. Bc3
{[%clk 0:01:27.8]} 11... Nc6 {[%clk 0:02:18.1]} 12. Bd3 {[%clk 0:01:19.5]} 12...
Nf6 {[%clk 0:01:56.6]} 13. O-O {[%clk 0:01:18.1]} 13... Be7 {[%clk 0:01:57.2]}
14. h3 {[%clk 0:01:11.5]} 14... O-O {[%clk 0:01:53.7]} 15. Qc2 {[%clk
0:01:11.9]} 15... h6 {[%clk 0:01:40.2]} 16. Nbd2 {[%clk 0:01:10.3]} 16... Be6
{[%clk 0:01:39.1]} 17. Rad1 {[%clk 0:01:08.8]} 17... Qc7 {[%clk 0:01:38.2]} 18.
b3 {[%clk 0:01:03.1]} 18... Rad8 {[%clk 0:01:37.6]} 19. Rfe1 {[%clk 0:01:01.5]}
19... Rd7 {[%clk 0:01:23.8]} 20. Ne4 {[%clk 0:00:53.7]} 20... Nxe4 {[%clk
0:01:20.3]} 21. Bxe4 {[%clk 0:00:51.6]} 21... Rfd8 {[%clk 0:01:20.9]} 22. Rxd7
{[%clk 0:00:50.9]} 22... Rxd7 {[%clk 0:01:20.9]} 23. Bh7+ {[%clk 0:00:49.7]}
23... Kh8 {[%clk 0:01:18.3]} 24. Bf5 {[%clk 0:00:49.3]} 24... Nd8 {[%clk
0:01:07.8]} 25. Ne5 {[%clk 0:00:38.5]} 25... Rd6 {[%clk 0:01:05.2]} 26. Bxe6
{[%clk 0:00:22.2]} 26... fxe6 {[%clk 0:01:05.3]} 27. Ng6+ {[%clk 0:00:13.4]}
27... Kg8 {[%clk 0:01:04.5]} 28. Be5 {[%clk 0:00:14.3]} 28... Nf7 {[%clk
0:00:59.7]} 29. Bxd6 {[%clk 0:00:13.7]} 29... Qxd6 {[%clk 0:00:57]} 30. Nxe7+
{[%clk 0:00:13.2]} 30... Qxe7 {[%clk 0:00:57.9]} 31. Qe4 {[%clk 0:00:13]} 31...
e5 {[%clk 0:00:57.8]} 32. Rd1 {[%clk 0:00:12.5]} 32... b6 {[%clk 0:00:49.9]} 33.
h4 {[%clk 0:00:07.9]} 33... h5 {[%clk 0:00:48.8]} 34. Qg6 {[%clk 0:00:03.4]}
34... e4 {[%clk 0:00:45.4]} 35. g3 {[%clk 0:00:03]} 35... e3 {[%clk 0:00:45.8]}
36. Qxh5 {[%clk 0:00:03.2]} 36... exf2+ {[%clk 0:00:45.4]} 37. Kxf2 {[%clk
0:00:03.9]} 37... Qf6+ {[%clk 0:00:45.3]} 38. Qf3 {[%clk 0:00:03.7]} 38... Qb2+
{[%clk 0:00:45.1]} 39. Kg1 {[%clk 0:00:02.7]} 39... Qe5 {[%clk 0:00:42.8]} 40.
Rf1 {[%clk 0:00:02.4]} 40... Nh6 {[%clk 0:00:41.9]} 41. Qf8+ {[%clk 0:00:02.8]}
41... Kh7 {[%clk 0:00:42.6]} 42. Qf4 {[%clk 0:00:03.7]} 42... Qe7 {[%clk
0:00:39.6]} 43. Qf3 {[%clk 0:00:03.8]} 43... Ng8 {[%clk 0:00:27]} 44. Qd3+
{[%clk 0:00:03.8]} 44... Kh8 {[%clk 0:00:27.2]} 45. Kg2 {[%clk 0:00:03.9]} 45...
Qb7+ {[%clk 0:00:27.1]} 46. Qf3 {[%clk 0:00:03.4]} 46... Qe7 {[%clk 0:00:28]}
47. Rf2 {[%clk 0:00:03.2]} 47... a5 {[%clk 0:00:27.7]} 48. Re2 {[%clk
0:00:03.5]} 48... Qd7 {[%clk 0:00:27]} 49. Qh5+ {[%clk 0:00:03.5]} 49... Nh6
{[%clk 0:00:26.4]} 50. Qf3 {[%clk 0:00:03.9]} 50... Ng8 {[%clk 0:00:24.9]} 51.
Rf2 {[%clk 0:00:04.1]} 51... a4 {[%clk 0:00:23.9]} 52. bxa4 {[%clk 0:00:03.8]}
52... Qxa4 {[%clk 0:00:24.8]} 53. Qc3 {[%clk 0:00:04.3]} 53... Qc6+ {[%clk
0:00:24.5]} 54. Kh2 {[%clk 0:00:04.4]} 54... Qd7 {[%clk 0:00:22.8]} 55. Rd2
{[%clk 0:00:03.4]} 55... Qf7 {[%clk 0:00:21.9]} 56. Qd3 {[%clk 0:00:02.5]} 56...
Nf6 {[%clk 0:00:21.4]} 57. Qd8+ {[%clk 0:00:02.9]} 57... Kh7 {[%clk 0:00:22]}
58. Qd3+ {[%clk 0:00:03.2]} 58... Kh8 {[%clk 0:00:22.6]} 59. Qe2 {[%clk
0:00:03.7]} 59... Qg6 {[%clk 0:00:21.7]} 60. Rd8+ {[%clk 0:00:03.9]} 60... Kh7
{[%clk 0:00:22.3]} 61. Rd1 {[%clk 0:00:04.2]} 61... Ng4+ {[%clk 0:00:21.4]} 62.
Kh3 {[%clk 0:00:04.6]} 62... Nf6 {[%clk 0:00:21.5]} 63. Kg2 {[%clk 0:00:04.7]}
63... Ne4 {[%clk 0:00:16.1]} 64. Rd3 {[%clk 0:00:04.6]} 64... Nf6 {[%clk
0:00:15.2]} 65. Re3 {[%clk 0:00:04.6]} 65... Qf7 {[%clk 0:00:14.1]} 66. Rf3
{[%clk 0:00:04.6]} 66... Qb7 {[%clk 0:00:13.9]} 67. Qd3+ {[%clk 0:00:05]} 67...
Kh8 {[%clk 0:00:14.1]} 68. Qf5 {[%clk 0:00:05.3]} 68... Qc6 {[%clk 0:00:13.6]}
69. g4 {[%clk 0:00:05.1]} 69... Qd6 {[%clk 0:00:12.6]} 70. g5 {[%clk 0:00:05]}
70... Ng8 {[%clk 0:00:12.6]} 71. Qg4 {[%clk 0:00:04]} 71... Ne7 {[%clk
0:00:09.1]} 72. Qh5+ {[%clk 0:00:04]} 72... Kg8 {[%clk 0:00:09.4]} 73. Qe8+
{[%clk 0:00:04.4]} 73... Kh7 {[%clk 0:00:10]} 74. Qh5+ {[%clk 0:00:04]} 74...
Kg8 {[%clk 0:00:09.9]} 75. Rf2 {[%clk 0:00:03.6]} 75... Qc6+ {[%clk 0:00:09.9]}
76. Qf3 {[%clk 0:00:03.7]} 76... Qe6 {[%clk 0:00:09.1]} 77. Qf8+ {[%clk
0:00:03.6]} 77... Kh7 {[%clk 0:00:09.6]} 78. Qf4 {[%clk 0:00:04.4]} 78... Ng6
{[%clk 0:00:09.8]} 79. Qg3 {[%clk 0:00:03.8]} 79... Qe4+ {[%clk 0:00:10]} 80.
Kh2 {[%clk 0:00:03.5]} 80... Qxc4 {[%clk 0:00:08.6]} 81. h5 {[%clk 0:00:03.5]}
81... Ne7 {[%clk 0:00:08.3]} 82. g6+ {[%clk 0:00:03.6]} 82... Kh6 {[%clk
0:00:08.9]} 83. Qe3+ {[%clk 0:00:03.7]} 83... Kxh5 {[%clk 0:00:08.9]} 84. Qxe7
{[%clk 0:00:03.1]} 84... Qd4 {[%clk 0:00:08.3]} 85. Qe2+ {[%clk 0:00:02.2]}
85... Kh6 {[%clk 0:00:08.1]} 86. Qf3 {[%clk 0:00:03.1]} 86... Kxg6 {[%clk
0:00:06.7]} 87. Qg3+ {[%clk 0:00:03]} 87... Kh7 {[%clk 0:00:07.2]} 88. Qh3+
{[%clk 0:00:02.9]} 88... Kg8 {[%clk 0:00:07.6]} 89. Qf3 {[%clk 0:00:03.8]} 89...
Qh4+ {[%clk 0:00:06.8]} 90. Kg2 {[%clk 0:00:03.9]} 90... Qg5+ {[%clk 0:00:07.5]}
91. Qg3 {[%clk 0:00:04.5]} 91... Qd5+ {[%clk 0:00:08.1]} 92. Rf3 {[%clk
0:00:05.2]} 92... Qd2+ {[%clk 0:00:08.7]} 93. Qf2 {[%clk 0:00:05.7]} 93... Qg5+
{[%clk 0:00:09.3]} 94. Kf1 {[%clk 0:00:06.3]} 94... Qc1+ {[%clk 0:00:09.4]} 95.
Qe1 {[%clk 0:00:07]} 95... Qc4+ {[%clk 0:00:09.9]} 96. Qe2 {[%clk 0:00:07.6]}
96... Qc1+ {[%clk 0:00:10.6]} 97. Kf2 {[%clk 0:00:08.1]} 97... Qg5 {[%clk
0:00:10.5]} 98. Qe8+ {[%clk 0:00:07.7]} 98... Kh7 {[%clk 0:00:11.1]} 99. Rh3+
{[%clk 0:00:08.3]} 1-0

[Event "*** Titled Tuesday Blitz"]
[Site "Chess.com"]
[Date "2020.05.12"]
[Round "1"]
[White "VALPARAISO37"]
[Black "giantslayer83"]
[Result "1-0"]
[WhiteElo "2395"]
[BlackElo "2707"]
[TimeControl "180+1"]
[EndTime "10:10:08 PDT"]
[Termination "VALPARAISO37 won by resignation"]

1. d4 {[%clk 0:03:00.9]} 1... Nf6 {[%clk 0:02:59.5]} 2. c4 {[%clk 0:03:00]} 2...
g6 {[%clk 0:02:58.7]} 3. Nc3 {[%clk 0:02:59.9]} 3... Bg7 {[%clk 0:02:59]} 4. e4
{[%clk 0:03:00]} 4... d6 {[%clk 0:02:59.4]} 5. f3 {[%clk 0:03:00.3]} 5... O-O
{[%clk 0:02:59.4]} 6. Be3 {[%clk 0:03:00.2]} 6... e5 {[%clk 0:02:56.7]} 7. d5
{[%clk 0:02:59.9]} 7... Nh5 {[%clk 0:02:54.8]} 8. Qd2 {[%clk 0:02:59.6]} 8... f5
{[%clk 0:02:54.3]} 9. O-O-O {[%clk 0:02:59.5]} 9... a5 {[%clk 0:02:53.9]} 10.
Bd3 {[%clk 0:02:58.1]} 10... Na6 {[%clk 0:02:53.6]} 11. Nge2 {[%clk 0:02:57.7]}
11... Nc5 {[%clk 0:02:36.3]} 12. Bc2 {[%clk 0:02:54.3]} 12... b6 {[%clk
0:02:36.3]} 13. h3 {[%clk 0:02:42.8]} 13... f4 {[%clk 0:02:25.2]} 14. Bf2 {[%clk
0:02:42]} 14... Bd7 {[%clk 0:02:25.1]} 15. Kb1 {[%clk 0:02:40]} 15... a4 {[%clk
0:02:24.6]} 16. Nc1 {[%clk 0:02:36.4]} 16... Qb8 {[%clk 0:02:11.3]} 17. Qe2
{[%clk 0:02:34.4]} 17... Qa7 {[%clk 0:02:10.6]} 18. Nd3 {[%clk 0:02:22]} 18...
Bh6 {[%clk 0:02:10]} 19. Rhg1 {[%clk 0:02:18.4]} 19... Qa5 {[%clk 0:02:07.7]}
20. Be1 {[%clk 0:02:11.3]} 20... Ng3 {[%clk 0:02:07.1]} 21. Qf2 {[%clk
0:02:08.9]} 21... Nxd3 {[%clk 0:01:53.2]} 22. Bxd3 {[%clk 0:01:58.9]} 22... Qc5
{[%clk 0:01:53.2]} 23. Nb5 {[%clk 0:01:53.8]} 23... Rfc8 {[%clk 0:01:46.4]} 24.
Rc1 {[%clk 0:01:49]} 24... Bg5 {[%clk 0:01:40.3]} 25. Rc2 {[%clk 0:01:44.8]}
25... Bh4 {[%clk 0:01:37.2]} 26. Qxc5 {[%clk 0:01:44]} 26... bxc5 {[%clk
0:01:36.9]} 27. a3 {[%clk 0:01:39.6]} 27... h5 {[%clk 0:01:32.4]} 28. Ka2 {[%clk
0:01:39.5]} 28... Bd8 {[%clk 0:01:30.6]} 29. Bf2 {[%clk 0:01:35.2]} 29... Rcb8
{[%clk 0:01:29.4]} 30. Rgc1 {[%clk 0:01:33.9]} 30... g5 {[%clk 0:01:29]} 31.
Bxg3 {[%clk 0:01:31.2]} 31... fxg3 {[%clk 0:01:28.7]} 32. Rf1 {[%clk 0:01:29.5]}
32... Kg7 {[%clk 0:01:28.5]} 33. Rd2 {[%clk 0:01:26.6]} 33... Rb7 {[%clk
0:01:24]} 34. Rdd1 {[%clk 0:01:26.6]} 34... g4 {[%clk 0:01:18.7]} 35. hxg4
{[%clk 0:01:24.1]} 35... hxg4 {[%clk 0:01:19.6]} 36. f4 {[%clk 0:01:24.7]} 36...
exf4 {[%clk 0:01:18.3]} 37. Rxf4 {[%clk 0:01:24.9]} 37... Bg5 {[%clk 0:01:18.3]}
38. Rff1 {[%clk 0:01:21.8]} 38... Bf6 {[%clk 0:01:18.4]} 39. Rd2 {[%clk
0:01:20]} 39... Be5 {[%clk 0:01:18.2]} 40. Rdd1 {[%clk 0:01:16.9]} 40... Rh8
{[%clk 0:01:17.7]} 41. Rh1 {[%clk 0:01:15.5]} 41... Rh2 {[%clk 0:01:16.8]} 42.
Rhg1 {[%clk 0:01:14.1]} 42... Bf4 {[%clk 0:01:08.3]} 43. Rde1 {[%clk 0:01:13.2]}
43... Kf6 {[%clk 0:01:03.1]} 44. Re2 {[%clk 0:01:10.8]} 44... Kg5 {[%clk
0:01:02.8]} 45. Rf1 {[%clk 0:01:09.9]} 45... Rh7 {[%clk 0:00:58.1]} 46. Rg1
{[%clk 0:01:08.6]} 46... Rh2 {[%clk 0:00:57]} 47. Rf1 {[%clk 0:01:08.6]} 47...
Be8 {[%clk 0:00:55.7]} 48. Rg1 {[%clk 0:01:06.3]} 48... Be5 {[%clk 0:00:53.6]}
49. Rf1 {[%clk 0:01:06.2]} 49... Rh8 {[%clk 0:00:53.2]} 50. Rg1 {[%clk
0:01:05.4]} 50... c6 {[%clk 0:00:53.2]} 51. dxc6 {[%clk 0:01:04.7]} 51... Bxc6
{[%clk 0:00:54.1]} 52. Rf1 {[%clk 0:01:04.8]} 52... Rh2 {[%clk 0:00:52.1]} 53.
Rf8 {[%clk 0:01:04.7]} 53... Rh8 {[%clk 0:00:44.4]} 54. Rxh8 {[%clk 0:01:03.4]}
54... Bxh8 {[%clk 0:00:45.3]} 55. Nxd6 {[%clk 0:01:02.9]} 55... Rd7 {[%clk
0:00:45.3]} 56. e5 {[%clk 0:01:01.4]} 56... Kf4 {[%clk 0:00:41.6]} 57. Be4
{[%clk 0:01:00]} 57... Bxe5 {[%clk 0:00:39]} 58. Bxc6 {[%clk 0:00:54.8]} 58...
Rxd6 {[%clk 0:00:39]} 59. Bxa4 {[%clk 0:00:54.9]} 59... Rd3 {[%clk 0:00:38.4]}
60. Bc2 {[%clk 0:00:52.3]} 60... Rd4 {[%clk 0:00:37]} 61. b3 {[%clk 0:00:49.3]}
61... Bf6 {[%clk 0:00:35]} 62. a4 {[%clk 0:00:49.2]} 62... Kg5 {[%clk
0:00:33.1]} 63. a5 {[%clk 0:00:49.5]} 63... Rf4 {[%clk 0:00:33.1]} 64. a6 {[%clk
0:00:47.8]} 64... Rf1 {[%clk 0:00:32.9]} 65. Bb1 {[%clk 0:00:44.7]} 65... Rf2
{[%clk 0:00:31.6]} 66. Bd3 {[%clk 0:00:43.8]} 66... Rf1 {[%clk 0:00:30.1]} 67.
Bb1 {[%clk 0:00:43.7]} 67... Bd4 {[%clk 0:00:23.6]} 68. a7 {[%clk 0:00:43.7]}
68... Rf8 {[%clk 0:00:23.2]} 69. Be4 {[%clk 0:00:42.1]} 69... Rf1 {[%clk
0:00:21.3]} 70. Rb2 {[%clk 0:00:39]} 70... Rf2 {[%clk 0:00:15.1]} 71. Rxf2
{[%clk 0:00:36.9]} 71... gxf2 {[%clk 0:00:15.8]} 72. Bd3 {[%clk 0:00:37.1]}
72... Kf4 {[%clk 0:00:15.6]} 73. a8=Q {[%clk 0:00:37.1]} 73... Ke3 {[%clk
0:00:16.3]} 74. Qe4+ {[%clk 0:00:36.7]} 74... Kd2 {[%clk 0:00:16.2]} 75. Bb1
{[%clk 0:00:36.4]} 75... g3 {[%clk 0:00:14.9]} 76. Qf3 {[%clk 0:00:35.8]} 76...
Ke1 {[%clk 0:00:14.5]} 77. Bd3 {[%clk 0:00:35.4]} 77... Kd2 {[%clk 0:00:14.6]}
78. Qe2+ {[%clk 0:00:35.5]} 78... Kc3 {[%clk 0:00:14.3]} 79. Qc2+ {[%clk
0:00:35.9]} 79... Kb4 {[%clk 0:00:14.2]} 80. Qd2+ {[%clk 0:00:36.1]} 80... Bc3
{[%clk 0:00:14.3]} 81. Qf4 {[%clk 0:00:36.4]} 81... Bd4 {[%clk 0:00:13.9]} 82.
Bc2 {[%clk 0:00:35]} 82... Kc3 {[%clk 0:00:13.6]} 83. Bd1 {[%clk 0:00:35.2]}
83... Kd3 {[%clk 0:00:12.7]} 84. Qf3+ {[%clk 0:00:34.8]} 84... Kd2 {[%clk
0:00:12.8]} 85. Qe2+ {[%clk 0:00:35.3]} 85... Kc3 {[%clk 0:00:12.7]} 86. Qc2+
{[%clk 0:00:35.3]} 86... Kb4 {[%clk 0:00:12.8]} 87. Be2 {[%clk 0:00:35.6]} 87...
Bc3 {[%clk 0:00:12.1]} 88. Qg6 {[%clk 0:00:35]} 88... Bd4 {[%clk 0:00:09.8]} 89.
Qd3 {[%clk 0:00:33.6]} 89... Bc3 {[%clk 0:00:07.4]} 90. Qxg3 {[%clk 0:00:33.6]}
90... Bd4 {[%clk 0:00:07.6]} 91. Qd3 {[%clk 0:00:33.6]} 91... Ka5 {[%clk
0:00:06.6]} 92. g3 {[%clk 0:00:33.8]} 92... Kb4 {[%clk 0:00:06.4]} 93. g4 {[%clk
0:00:34.2]} 93... Ka5 {[%clk 0:00:06.1]} 94. g5 {[%clk 0:00:34.6]} 94... Kb4
{[%clk 0:00:06.1]} 95. Qxd4 {[%clk 0:00:35.1]} 95... cxd4 {[%clk 0:00:05.7]} 96.
Kb2 {[%clk 0:00:34.7]} 96... Kc5 {[%clk 0:00:05.6]} 97. Kc2 {[%clk 0:00:34.5]}
97... Kd6 {[%clk 0:00:05.3]} 98. Kd3 {[%clk 0:00:34.8]} 98... Ke5 {[%clk
0:00:05.3]} 99. b4 {[%clk 0:00:35.1]} 99... Kf5 {[%clk 0:00:05.1]} 100. Kxd4
{[%clk 0:00:35.4]} 100... Kxg5 {[%clk 0:00:05.1]} 101. Ke3 {[%clk 0:00:35.7]}
101... Kf5 {[%clk 0:00:04.7]} 102. Kxf2 {[%clk 0:00:36]} 102... Ke4 {[%clk
0:00:04.9]} 103. c5 {[%clk 0:00:36.5]} 103... Kd5 {[%clk 0:00:04.9]} 104. Bf3+
{[%clk 0:00:36.8]} 104... Kc4 {[%clk 0:00:04.5]} 105. c6 {[%clk 0:00:37.3]}
105... Kxb4 {[%clk 0:00:04.7]} 106. c7 {[%clk 0:00:37.8]} 106... Kb5 {[%clk
0:00:04.8]} 107. c8=R {[%clk 0:00:37.7]} 107... Kb4 {[%clk 0:00:05.1]} 108. Rc6
{[%clk 0:00:37.4]} 108... Kb5 {[%clk 0:00:04.6]} 109. Ke3 {[%clk 0:00:37.1]} 1-0